bitfinex/quotes_SOLUSD_20250204
["timestamp","ask_amount","ask_price","bid_price","bid_amount"]
[1738699387607,2.0,209.52,209.51,0.063]
[1738699387912,40.38783237,209.52,209.51,0.063]
[1738699388226,15.41184853,209.46,209.45,0.063]
[1738699388521,53.7996809,209.46,209.45,0.063]
[1738699388739,54.69525847,209.46,209.45,0.063]
[1738699388929,54.69525847,209.46,209.4,0.063]
[1738699388930,2.0,209.41,209.4,0.063]
[1738699390310,53.7996809,209.41,209.4,0.063]
[1738699390509,54.94629848,209.41,209.4,0.063]
[1738699390714,2.0,209.41,209.4,0.063]
[1738699390913,1.0,209.43,209.4,0.063]
[1738699391104,38.38783237,209.51,209.4,0.063]
[1738699391105,1.0,209.41,209.4,0.063]
[1738699391305,1.0,209.42,209.4,0.063]
[1738699391631,1.0,209.41,209.4,0.063]
[1738699392230,1.0,209.41,209.4,38.45083237]
[1738699392415,1.0,209.42,209.4,38.45083237]
[1738699392814,1.0,209.44,209.4,38.45083237]
[1738699393015,1.0,209.46,209.43,38.38783237]
[1738699393313,2.0,209.42,209.4,0.063]
[1738699393706,1.0,209.44,209.41,38.38783237]
[1738699394036,1.0,209.42,209.4,0.063]
[1738699394238,14.41184853,209.41,209.4,0.063]
[1738699394422,52.7996809,209.41,209.4,0.063]
[1738699394735,14.41184853,209.41,209.4,0.063]
[1738699395233,2.0,209.28,209.27,38.38783237]
[1738699395834,1.0,209.21,209.17,11.9518]
[1738699396043,1.0,209.15,209.13,31.076051]
[1738699396206,1.0,209.15,209.01,19.0169]
[1738699396406,1.0,209.17,209.05,20.0]
[1738699396607,1.0,209.2,209.11,0.25098]
[1738699396807,0.89629715,209.31,209.23,0.12549]
[1738699396808,1.0,209.31,209.23,0.12549]
[1738699397112,1.0,209.28,209.27,38.38783237]
[1738699397318,1.0,209.3,209.27,38.38783237]
[1738699397515,1.0,209.36,209.29,38.38783237]
[1738699397736,1.0,209.37,209.29,0.50196]
[1738699398033,1.0,209.38,209.36,4.7764]
[1738699398218,1.0,209.4,209.37,38.38783237]
[1738699398422,1.0,209.42,209.39,38.38783237]
[1738699398617,2.0,209.42,209.39,38.38783237]
[1738699398935,1.0,209.33,209.32,38.38783237]
[1738699399152,1.0,209.35,209.32,38.38783237]
[1738699399312,1.0,209.32,209.27,20.0]
[1738699399515,1.0,209.35,209.28,0.12549]
[1738699399708,1.0,209.35,209.34,38.38783237]
[1738699399908,2.0,209.33,209.32,38.38783237]
[1738699400225,2.0,209.35,209.32,38.38783237]
[1738699400421,2.0,209.33,209.28,4.7782]
[1738699400615,1.0,209.29,209.23,18.4248]
[1738699400825,13.41184853,209.4,209.07,242.58251344]
[1738699400826,1.0,209.25,209.24,4.7792]
[1738699401136,1.0,209.25,209.2,4.7801]
[1738699401344,1.0,209.23,209.2,4.7801]
[1738699401507,2.0,209.27,209.2,16.7303]
[1738699401913,2.0,209.27,209.26,38.38783237]
[1738699402321,2.0,209.25,209.24,38.38783237]
[1738699402533,1.0,209.21,209.2,38.38783237]
[1738699402738,2.0,209.21,209.2,38.38783237]
[1738699402944,2.0,209.21,209.12,16.7364]
[1738699402945,1.0,209.17,209.16,38.38783237]
[1738699403238,2.0,209.13,209.12,38.38783237]
[1738699403439,1.0,209.14,209.12,38.38783237]
[1738699403777,1.0,209.17,209.12,38.38783237]
[1738699403911,1.0,209.15,209.11,20.0]
[1738699404107,1.0,209.17,209.11,20.0]
[1738699404340,1.0,209.17,209.16,38.38783237]
[1738699404524,1.0,209.23,209.17,4.7808]
[1738699404838,1.0,209.25,209.18,0.12549]
[1738699405032,1.0,209.26,209.24,38.38783237]
[1738699405240,1.0,209.28,209.24,38.38783237]
[1738699405439,1.0,209.3,209.26,38.38783237]
[1738699405733,2.0,209.28,209.27,38.38783237]
[1738699405915,1.0,209.32,209.27,38.38783237]
[1738699406114,1.0,209.3,209.22,38.38783237]
[1738699406316,1.0,209.3,209.17,40.6368]
[1738699406317,1.0,209.19,209.17,4.7808]
[1738699406519,1.0,209.21,209.17,4.7808]
[1738699406520,1.0,209.2,209.17,4.7808]
[1738699406738,1.0,209.24,209.19,38.38783237]
[1738699406938,1.0,209.32,209.23,0.12549]
[1738699407114,1.0,209.29,209.23,0.12549]
[1738699407310,2.0,209.21,209.2,38.38783237]
[1738699407528,1.0,209.23,209.2,38.38783237]
[1738699407731,1.0,209.33,209.26,0.50196]
[1738699407946,1.0,209.33,209.26,0.12549]
[1738699408148,2.0,209.38,209.32,38.38783237]
[1738699408333,2.0,209.35,209.34,38.38783237]
[1738699408655,1.0,209.33,209.32,38.38783237]
[1738699408825,2.0,209.29,209.28,38.38783237]
[1738699409024,1.0,209.35,209.28,38.38783237]
[1738699409257,1.0,209.29,209.28,38.38783237]
[1738699409440,2.0,209.29,209.26,38.38783237]
[1738699409655,2.0,209.23,209.22,38.38783237]
[1738699409835,2.0,209.19,209.18,38.38783237]
[1738699410155,2.0,209.15,209.14,38.38783237]
[1738699410331,2.0,209.15,209.12,38.38783237]
[1738699410532,2.0,209.13,209.12,38.38783237]
[1738699410932,2.0,209.1,209.09,38.38783237]
[1738699411132,2.0,209.1,209.05,4.7835]
[1738699411133,2.0,209.08,209.07,38.38783237]
[1738699411327,1.0,209.1,209.07,38.38783237]
[1738699411534,2.0,209.13,209.04,16.7431]
[1738699411830,1.0,209.05,209.04,4.7837]
[1738699412052,1.0,209.03,209.02,4.784]
[1738699412261,1.0,209.02,209.01,0.063]
[1738699413170,39.38783237,209.02,209.01,0.063]
[1738699413330,57.5838809,209.02,209.01,0.063]
[1738699413643,59.85765255,209.02,209.01,0.063]
[1738699413842,60.85765255,209.02,209.01,0.063]
[1738699414256,60.85765255,209.02,208.96,1.05]
[1738699414257,1.0,208.97,208.96,1.05]
[1738699414454,2.0,208.97,208.96,1.05]
[1738699415034,15.41184853,208.97,208.96,1.05]
[1738699415234,2.0,208.97,208.96,1.05]
[1738699415636,1.0,209.01,208.96,39.43783237]
[1738699415935,1.0,209.06,209.0,76.77566474]
[1738699416152,1.0,209.06,208.97,16.7487]
[1738699416153,1.0,209.06,209.04,38.38783237]
[1738699416353,2.0,208.97,208.96,1.05]
[1738699417460,1.0,208.97,208.96,38.27390631]
[1738699417961,2.0,208.97,208.96,43.05950631]
[1738699418456,2.0,208.97,208.96,38.27390631]
[1738699418651,1.0,208.97,208.96,38.27390631]
[1738699419163,1.0,209.06,208.98,0.12549]
[1738699419365,1.0,209.06,209.05,38.38783237]
[1738699419557,1.0,209.13,209.06,0.12549]
[1738699419858,1.0,209.12,209.11,38.38783237]
[1738699420056,2.0,209.08,209.07,38.38783237]
[1738699420243,2.0,209.06,209.0,38.38783237]
[1738699420449,1.0,209.11,209.05,38.38783237]
[1738699420642,1.0,209.13,209.0,38.38783237]
[1738699420857,1.0,209.13,209.12,38.38783237]
[1738699421045,1.0,209.09,209.08,38.38783237]
[1738699421440,1.0,209.18,209.11,20.0]
[1738699421639,1.0,209.16,209.11,38.38783237]
[1738699421843,1.0,209.1,209.09,38.38783237]
[1738699422155,19.08844947,209.2,209.0,38.38783237]
[1738699422156,1.0,209.03,209.0,38.38783237]
[1738699422362,1.0,209.02,209.0,38.38783237]
[1738699422663,1.0,209.05,209.02,38.38783237]
[1738699422861,1.0,209.05,209.04,38.38783237]
[1738699423057,1.0,208.99,208.96,38.45083237]
[1738699423365,1.0,208.97,208.96,0.063]
[1738699424344,1.0,208.99,208.97,4.7853]
[1738699424555,1.0,208.99,208.98,38.38783237]
[1738699425167,1.0,208.99,208.96,38.45083237]
[1738699425465,1.0,209.0,208.98,38.38783237]
[1738699425668,1.0,208.97,208.96,0.063]
[1738699425842,1.0,209.03,208.97,4.7853]
[1738699426175,1.0,209.15,208.96,38.45083237]
[1738699426176,1.0,208.97,208.96,0.063]
[1738699427839,4.783,209.08,208.96,0.063]
[1738699427840,1.0,209.0,208.96,0.063]
[1738699428046,1.0,209.0,208.99,38.38783237]
[1738699428239,1.0,209.05,208.99,38.38783237]
[1738699428473,1.0,209.04,209.03,38.38783237]
[1738699428776,1.0,209.04,209.02,4.7842]
[1738699428970,1.0,209.04,209.03,38.38783237]
[1738699429173,1.0,209.02,208.99,38.38783237]
[1738699429354,1.0,209.0,208.99,38.38783237]
[1738699429551,1.0,209.03,208.99,38.38783237]
[1738699429749,1.0,209.08,209.02,38.38783237]
[1738699430047,1.0,209.0,208.99,38.38783237]
[1738699430251,1.0,208.97,208.96,0.063]
[1738699430865,58.48237267,208.97,208.96,0.063]
[1738699431069,1.0,208.84,208.82,38.38783237]
[1738699431243,1.0,208.81,208.78,38.38783237]
[1738699431439,1.0,208.81,208.77,4.7898]
[1738699431758,1.0,208.85,208.81,4.789]
[1738699431973,1.0,208.91,208.84,38.38783237]
[1738699432140,1.0,208.91,208.81,4.789]
[1738699432141,1.0,208.91,208.89,76.77566474]
[1738699432474,1.0,208.98,208.96,0.063]
[1738699432768,1.0,209.04,208.98,0.12549]
[1738699432977,5.67846892,209.15,208.96,0.063]
[1738699432978,43.16683237,209.25,209.07,0.25098]
[1738699433272,38.38783237,209.23,209.12,38.38783237]
[1738699433569,38.38783237,209.21,209.12,38.38783237]
[1738699433876,38.38783237,209.24,209.03,1.0]
[1738699434048,38.38783237,209.28,209.18,38.38783237]
[1738699434372,12.6815,209.3,209.12,38.38783237]
[1738699434373,38.38783237,209.23,209.12,38.38783237]
[1738699434578,38.38783237,209.23,209.14,38.38783237]
[1738699434745,38.38783237,209.27,209.16,38.38783237]
[1738699434945,13.41184853,209.2,209.1,38.38783237]
[1738699435168,38.38783237,209.19,209.1,38.38783237]
[1738699435467,13.41184853,209.2,209.12,38.38783237]
[1738699435667,39.28440041,209.21,209.12,38.38783237]
[1738699435851,38.38783237,209.21,209.1,38.38783237]
[1738699436058,13.41184853,209.18,209.1,38.38783237]
[1738699436255,13.41184853,209.18,209.08,38.38783237]
[1738699436664,14.3084251,209.18,209.08,38.38783237]
[1738699436859,13.41184853,209.18,209.08,38.38783237]
[1738699437056,38.38783237,209.21,209.12,38.38783237]
[1738699437356,38.38783237,209.21,209.09,38.38783237]
[1738699437562,38.38783237,209.27,209.17,38.38783237]
[1738699438277,51.7996809,209.29,209.19,38.38783237]
[1738699438483,38.38783237,209.31,209.21,38.38783237]
[1738699438662,0.8959198,209.36,209.27,38.38783237]
[1738699438990,38.38783237,209.35,209.25,38.38783237]
[1738699439275,54.51514886,209.37,209.27,38.38783237]
[1738699439481,0.03,209.4,209.32,38.38783237]
[1738699439780,0.03,209.4,209.28,38.38783237]
[1738699439781,38.38783237,209.38,209.28,38.38783237]
[1738699440092,38.41783237,209.4,209.3,38.38783237]
[1738699440390,38.41783237,209.4,209.24,16.7272]
[1738699440391,0.03,209.4,209.36,20.0]
[1738699440554,0.03,209.4,209.39,38.38783237]
[1738699440888,6.68655286,209.5,209.39,38.38783237]
[1738699441074,38.38783237,209.46,209.37,38.38783237]
[1738699441384,6.68655286,209.5,209.45,38.38783237]
[1738699441585,14.0818,209.61,209.33,38.38783237]
[1738699441586,0.03,209.61,209.49,38.38783237]
[1738699441751,0.03,209.61,209.57,38.38783237]
[1738699441950,0.03,209.61,209.58,38.38783237]
[1738699442149,0.03,209.61,209.54,38.38783237]
[1738699442463,38.38783237,209.56,209.46,38.38783237]
[1738699442768,13.41184853,209.55,209.46,38.38783237]
[1738699442983,13.41184853,209.55,209.49,12.93998264]
[1738699443151,38.41783237,209.61,209.5,38.38783237]
[1738699443351,1.0,209.67,209.57,38.38783237]
[1738699443352,38.38783237,209.67,209.57,38.38783237]
[1738699443575,38.38783237,209.69,209.59,38.38783237]
[1738699443953,51.7996809,209.67,209.57,38.38783237]
[1738699444262,51.7996809,209.67,209.56,7.33218649]
[1738699444263,38.38783237,209.69,209.59,38.38783237]
[1738699444450,0.03,209.71,209.66,38.38783237]
[1738699444647,0.03,209.71,209.63,1.0]
[1738699444851,0.03,209.71,209.7,38.38783237]
[1738699445667,0.03,209.85,209.73,20.0]
[1738699445984,0.03,209.85,209.84,38.38783237]
[1738699446286,12.9014,210.06,209.84,55.06713237]
[1738699446287,38.38783237,210.0,209.84,55.06713237]
[1738699446494,38.38783237,209.98,209.88,38.38783237]
[1738699446789,38.38783237,209.96,209.86,38.38783237]
[1738699446951,38.38783237,209.94,209.84,38.38783237]
[1738699447152,38.38783237,209.89,209.79,38.38783237]
[1738699447754,0.89365788,209.91,209.81,38.38783237]
[1738699447755,38.38783237,209.91,209.81,38.38783237]
[1738699447958,38.38783237,209.96,209.86,38.38783237]
[1738699448154,42.7919,210.09,209.83,38.38783237]
[1738699448155,38.38783237,209.93,209.83,38.38783237]
[1738699448483,38.38783237,209.99,209.89,38.38783237]
[1738699448799,4.7617,210.01,209.91,38.38783237]
[1738699448800,38.38783237,210.01,209.91,38.38783237]
[1738699448984,38.38783237,210.03,209.93,38.38783237]
[1738699449291,38.38783237,210.11,210.01,38.38783237]
[1738699449780,38.38783237,210.07,209.99,38.38783237]
[1738699450083,13.41184853,210.08,209.99,38.38783237]
[1738699450287,38.38783237,210.03,209.93,38.38783237]
[1738699450597,38.38783237,209.99,209.89,38.38783237]
[1738699450775,38.38783237,209.93,209.83,38.38783237]
[1738699450981,38.38783237,209.95,209.85,38.38783237]
[1738699451161,38.38783237,209.97,209.87,38.38783237]
[1738699451358,38.38783237,209.91,209.81,38.38783237]
[1738699451871,38.38783237,209.97,209.78,4.7667]
[1738699452066,38.38783237,209.86,209.77,38.38783237]
[1738699452268,38.38783237,209.82,209.73,38.38783237]
[1738699452794,38.38783237,209.86,209.77,38.38783237]
[1738699452956,38.38783237,209.84,209.76,38.38783237]
[1738699453157,38.38783237,209.84,209.74,38.38783237]
[1738699453403,38.38783237,209.86,209.76,38.38783237]
[1738699453568,38.38783237,209.88,209.78,38.38783237]
[1738699453891,38.38783237,209.86,209.76,38.38783237]
[1738699454098,38.38783237,209.82,209.74,38.38783237]
[1738699454269,38.38783237,209.88,209.8,38.38783237]
[1738699454466,38.38783237,209.84,209.74,38.38783237]
[1738699454664,38.38783237,209.9,209.8,38.38783237]
[1738699455078,38.38783237,209.82,209.72,38.38783237]
[1738699455401,38.38783237,209.8,209.7,38.38783237]
[1738699455691,38.38783237,209.78,209.68,38.38783237]
[1738699455893,38.38783237,209.78,209.61,6.0256]
[1738699455894,38.38783237,209.76,209.66,38.38783237]
[1738699456200,38.38783237,209.84,209.73,38.38783237]
[1738699456402,38.38783237,209.82,209.71,38.38783237]
[1738699456696,38.38783237,209.72,209.62,38.38783237]
[1738699456994,38.38783237,209.7,209.6,38.38783237]
[1738699457196,38.38783237,209.68,209.58,38.38783237]
[1738699457368,38.38783237,209.74,209.64,38.38783237]
[1738699457568,38.38783237,209.74,209.55,38.38783237]
[1738699457569,38.38783237,209.78,209.68,38.38783237]
[1738699457763,0.89416036,209.77,209.68,38.38783237]
[1738699457990,38.38783237,209.78,209.68,38.38783237]
[1738699458392,38.38783237,209.74,209.64,38.38783237]
[1738699458568,38.38783237,209.76,209.66,38.38783237]
[1738699458766,38.38783237,209.72,209.62,38.38783237]
[1738699459081,4.7671,209.77,209.68,38.38783237]
[1738699459290,4.7671,209.77,209.66,38.38783237]
[1738699459291,38.38783237,209.76,209.66,38.38783237]
[1738699459812,38.38783237,209.76,209.56,16.7016]
[1738699459813,38.38783237,209.74,209.64,38.38783237]
[1738699459978,38.38783237,209.74,209.59,20.0]
[1738699459979,38.38783237,209.81,209.72,38.38783237]
[1738699460182,0.89382979,209.88,209.77,38.38783237]
[1738699460371,38.38783237,209.84,209.75,38.38783237]
[1738699460572,43.15293237,209.86,209.77,38.38783237]
[1738699460774,38.38783237,209.84,209.73,38.38783237]
[1738699461085,38.38783237,209.76,209.66,43.15733237]
[1738699461279,38.38783237,209.74,209.64,38.38783237]
[1738699461498,38.38783237,209.76,209.66,38.38783237]
[1738699461982,38.38783237,209.74,209.64,38.38783237]
[1738699462301,38.38783237,209.66,209.57,38.38783237]
[1738699462603,38.38783237,209.61,209.51,38.38783237]
[1738699462803,38.38783237,209.59,209.49,38.38783237]
[1738699463304,38.38783237,209.54,209.45,38.38783237]
[1738699463483,38.38783237,209.5,209.43,0.063]
[1738699463686,1.0,209.43,209.3,32.34995662]
[1738699463875,38.38783237,209.38,209.3,32.34995662]
[1738699464078,0.89551005,209.42,209.33,38.38783237]
[1738699464384,0.89576023,209.43,209.37,38.38783237]
[1738699464581,38.38783237,209.46,209.35,38.38783237]
[1738699464779,39.28327423,209.5,209.39,38.38783237]
[1738699465283,38.38783237,209.48,209.39,38.38783237]
[1738699465480,38.38783237,209.48,209.37,38.38783237]
[1738699465682,13.41184853,209.51,209.41,38.38783237]
[1738699465683,0.89535206,209.51,209.41,38.38783237]
[1738699465889,0.89535206,209.51,209.33,38.38783237]
[1738699465890,38.38783237,209.56,209.47,38.38783237]
[1738699466079,4.7712,209.59,209.49,38.38783237]
[1738699466396,43.15893237,209.6,209.51,38.38783237]
[1738699466602,38.38783237,209.62,209.53,38.38783237]
[1738699466974,43.15843237,209.62,209.51,38.38783237]
[1738699467217,38.38783237,209.62,209.51,38.38783237]
[1738699467498,38.38783237,209.68,209.59,38.38783237]
[1738699467799,38.38783237,209.68,209.57,38.38783237]
[1738699468106,38.38783237,209.7,209.62,38.38783237]
[1738699468398,38.38783237,209.68,209.58,38.38783237]
[1738699468600,38.38783237,209.63,209.52,38.38783237]
[1738699468802,38.38783237,209.59,209.5,38.38783237]
[1738699468977,38.38783237,209.57,209.46,38.38783237]
[1738699469171,13.41184853,209.56,209.46,38.38783237]
[1738699469500,38.38783237,209.51,209.42,38.38783237]
[1738699469671,38.38783237,209.53,209.42,38.38783237]
[1738699469873,38.38783237,209.66,209.38,4.7758]
[1738699469874,38.38783237,209.57,209.46,38.38783237]
[1738699470077,0.89522376,209.59,209.38,4.7758]
[1738699470078,38.38783237,209.55,209.44,38.38783237]
[1738699470487,0.89503067,209.54,209.44,38.38783237]
[1738699470680,38.38783237,209.46,209.36,38.38783237]
[1738699470876,38.38783237,209.44,209.34,38.38783237]
[1738699471093,38.38783237,209.48,209.38,38.38783237]
[1738699471405,43.15993237,209.55,209.46,38.38783237]
[1738699471580,43.15993237,209.55,209.37,0.25098]
[1738699471581,38.38783237,209.53,209.43,38.38783237]
[1738699471902,4.7721,209.55,209.33,38.38783237]
[1738699471903,38.38783237,209.51,209.41,38.38783237]
[1738699472209,38.38783237,209.47,209.37,38.38783237]
[1738699472512,38.38783237,209.43,209.33,38.38783237]
[1738699472711,38.38783237,209.39,209.29,38.38783237]
[1738699472879,39.28346224,209.41,209.31,38.38783237]
[1738699473077,38.38783237,209.39,209.29,38.38783237]
[1738699473404,38.38783237,209.31,209.22,0.063]
[1738699473576,38.38783237,209.29,209.22,0.063]
[1738699473771,38.38783237,209.27,209.22,0.063]
[1738699474003,38.38783237,209.25,209.22,0.063]
[1738699474601,38.38783237,209.27,209.22,0.063]
[1738699474808,38.38783237,209.23,209.22,0.063]
[1738699475118,38.38783237,209.31,209.22,0.063]
[1738699475312,38.38783237,209.33,209.23,38.38783237]
[1738699475478,1.0,209.45,209.23,38.38783237]
[1738699475479,0.89592733,209.43,209.25,0.25098]
[1738699475681,43.16233237,209.45,209.36,38.38783237]
[1738699475879,43.16233237,209.45,209.34,38.38783237]
[1738699476080,38.38783237,209.41,209.32,38.38783237]
[1738699476394,1.0,209.49,209.22,38.45083237]
[1738699476395,23.8529,209.62,209.41,4.7753]
[1738699476598,43.16003237,209.55,209.46,38.38783237]
[1738699476905,63.16003237,209.55,209.44,38.38783237]
[1738699477109,38.38783237,209.57,209.46,38.38783237]
[1738699477409,43.15853237,209.61,209.5,38.38783237]
[1738699477888,43.15853237,209.61,209.52,38.38783237]
[1738699478076,4.7707,209.61,209.52,38.38783237]
[1738699478281,43.15823237,209.63,209.52,38.38783237]
[1738699478497,43.15823237,209.63,209.52,43.16053237]
[1738699478854,13.8325,209.73,209.61,38.38783237]
[1738699478855,38.38783237,209.73,209.61,38.38783237]
[1738699478989,38.38783237,209.75,209.66,38.38783237]
[1738699479178,0.89422051,209.79,209.68,38.38783237]
[1738699479381,4.767,209.78,209.7,38.38783237]
[1738699479615,0.89408311,209.81,209.7,38.38783237]
[1738699479616,4.7664,209.8,209.7,38.38783237]
[1738699479911,4.796,209.82,209.72,38.38783237]
[1738699480108,0.03,209.82,209.76,38.38783237]
[1738699480283,0.03,209.82,209.8,38.38783237]
[1738699481492,0.03,209.82,209.74,38.38783237]
[1738699481826,38.38783237,209.77,209.66,38.38783237]
[1738699481995,38.38783237,209.75,209.66,38.38783237]
[1738699482200,38.38783237,209.71,209.62,38.38783237]
[1738699482499,38.38783237,209.75,209.66,38.38783237]
[1738699482714,38.38783237,209.73,209.64,38.38783237]
[1738699482920,38.38783237,209.71,209.62,38.38783237]
[1738699483121,38.38783237,209.68,209.58,38.38783237]
[1738699483331,38.38783237,209.64,209.54,38.38783237]
[1738699483630,38.38783237,209.66,209.56,38.38783237]
[1738699484230,38.38783237,209.61,209.51,38.38783237]
[1738699484533,38.38783237,209.59,209.49,38.38783237]
[1738699485226,38.38783237,209.55,209.44,38.38783237]
[1738699485430,38.38783237,209.59,209.51,38.38783237]
[1738699485600,38.38783237,209.55,209.45,38.38783237]
[1738699485796,38.38783237,209.53,209.43,0.063]
[1738699486013,38.38783237,209.49,209.43,0.063]
[1738699486442,43.16173237,209.47,209.43,0.063]
[1738699486611,13.41184853,209.49,209.43,0.063]
[1738699486612,38.38783237,209.45,209.43,0.063]
[1738699486816,13.41184853,209.44,209.43,0.063]
[1738699487129,0.89552947,209.54,209.43,0.063]
[1738699487327,4.7725,209.53,209.46,38.38783237]
[1738699487636,4.7707,209.61,209.52,38.38783237]
[1738699487834,4.7703,209.63,209.56,38.38783237]
[1738699488003,4.7694,209.67,209.58,38.38783237]
[1738699488199,4.7683,209.72,209.64,38.38783237]
[1738699488403,43.15613237,209.72,209.62,38.38783237]
[1738699488802,4.7683,209.72,209.64,38.38783237]
[1738699488999,0.03,209.73,209.68,38.38783237]
[1738699489205,0.03,209.73,209.71,38.38783237]
[1738699489508,0.03,209.73,209.67,38.38783237]
[1738699490145,0.03,209.73,209.71,38.38783237]
[1738699490510,0.03,209.73,209.68,0.12549]
[1738699490511,0.03,209.73,209.67,38.38783237]
[1738699490814,0.03,209.73,209.63,38.38783237]
[1738699491208,0.03,209.73,209.65,38.38783237]
[1738699491416,0.03,209.73,209.63,38.38783237]
[1738699491615,0.03,209.73,209.65,38.38783237]
[1738699491921,0.03,209.73,209.72,38.38783237]
[1738699493233,0.03,209.73,209.7,38.38783237]
[1738699493739,0.03,209.73,209.68,38.38783237]
[1738699493907,0.03,209.73,209.56,5.7719]
[1738699494109,0.03,209.73,209.67,38.38783237]
[1738699494430,0.03,209.73,209.71,38.38783237]
[1738699494740,38.38783237,209.72,209.61,38.38783237]
[1738699494906,38.38783237,209.7,209.61,38.38783237]
[1738699495107,38.38783237,209.66,209.56,38.38783237]
[1738699495308,38.38783237,209.64,209.54,38.38783237]
[1738699495541,13.41184853,209.68,209.47,16.7087]
[1738699495542,38.38783237,209.62,209.52,38.38783237]
[1738699495729,38.38783237,209.6,209.45,4.7742]
[1738699496041,38.38783237,209.6,209.38,19.095238]
[1738699496042,38.38783237,209.53,209.44,38.38783237]
[1738699496209,38.38783237,209.55,209.44,38.38783237]
[1738699496410,38.38783237,209.53,209.44,38.38783237]
[1738699496638,38.38783237,209.59,209.5,38.38783237]
[1738699496805,38.38783237,209.53,209.44,38.38783237]
[1738699497013,38.38783237,209.57,209.48,38.38783237]
[1738699497316,16.6968,209.62,209.43,4.8377]
[1738699497317,38.38783237,209.55,209.46,38.38783237]
[1738699497509,13.41184853,209.54,209.46,38.38783237]
[1738699497739,38.38783237,209.51,209.43,0.063]
[1738699497935,38.38783237,209.49,209.43,0.063]
[1738699498140,38.38783237,209.51,209.43,0.063]
[1738699498358,38.38783237,209.53,209.43,38.45083237]
[1738699498564,0.89529519,209.54,209.45,38.38783237]
[1738699498766,4.7723,209.54,209.45,38.38783237]
[1738699499070,43.16013237,209.55,209.45,38.38783237]
[1738699499241,4.7723,209.55,209.47,38.38783237]
[1738699499639,38.38783237,209.61,209.52,38.38783237]
[1738699499840,4.7709,209.61,209.52,38.38783237]
[1738699500046,4.7709,209.61,209.48,38.38783237]
[1738699500047,38.38783237,209.57,209.48,38.38783237]
[1738699500740,38.38783237,209.55,209.44,38.38783237]
[1738699500948,14.30675418,209.56,209.43,0.063]
[1738699500949,38.38783237,209.53,209.43,0.063]
[1738699501158,38.38783237,209.63,209.52,38.38783237]
[1738699501400,38.38783237,209.63,209.45,0.12549]
[1738699501401,38.38783237,209.55,209.45,38.38783237]
[1738699501664,38.38783237,209.49,209.43,0.063]
[1738699501882,13.41184853,209.52,209.43,0.063]
[1738699501883,38.51332237,209.47,209.43,0.063]
[1738699502047,38.38783237,209.44,209.22,6.0953]
[1738699502242,38.38783237,209.39,209.29,38.38783237]
[1738699502456,38.38783237,209.34,209.25,38.38783237]
[1738699502646,38.38783237,209.32,209.22,0.063]
[1738699502967,43.16493237,209.33,209.25,38.38783237]
[1738699503136,43.16493237,209.33,209.23,38.38783237]
[1738699503337,0.89603988,209.42,209.32,38.38783237]
[1738699503548,38.38783237,209.49,209.38,38.38783237]
[1738699503745,0.8955467,209.52,209.4,38.38783237]
[1738699503746,43.16083237,209.51,209.4,38.38783237]
[1738699503938,43.16043237,209.53,209.44,38.38783237]
[1738699504154,42.66043237,209.53,209.44,38.38783237]
[1738699504353,38.38783237,209.45,209.33,38.38783237]
[1738699504570,38.38783237,209.45,209.22,102.97593237]
[1738699504571,38.38783237,209.44,209.35,38.38783237]
[1738699504776,1.0,209.54,209.43,38.38783237]
[1738699504777,38.38783237,209.54,209.43,38.38783237]
[1738699504946,20.132,209.65,209.34,4.7769]
[1738699504947,38.38783237,209.56,209.37,20.0]
[1738699505148,11.9266,209.62,209.34,16.7191]
[1738699505149,38.38783237,209.52,209.34,16.7191]
[1738699505351,38.38783237,209.43,209.33,38.38783237]
[1738699505548,0.8951583,209.51,209.31,2.0]
[1738699505761,1.0,209.59,209.32,0.50196]
[1738699505960,0.12549,209.52,209.28,31.9452]
[1738699506174,13.53733853,209.5,209.28,31.9452]
[1738699506378,0.89540979,209.52,209.29,1.37647]
[1738699506572,0.89540979,209.52,209.43,38.38783237]
[1738699506573,38.38783237,209.52,209.43,38.38783237]
[1738699506775,4.7724,209.54,209.45,38.38783237]
[1738699506986,38.38783237,209.49,209.4,38.38783237]
[1738699507278,38.38783237,209.51,209.42,38.38783237]